bitfinex-derivatives/quotes_ETHF0:USTF0_20240829
["timestamp","ask_amount","ask_price","bid_price","bid_amount"]
[1724930423902,1.36577,2562.0,2561.1,3.2078]
[1724930423903,0.39031,2561.4,2561.1,3.2078]
[1724930424092,0.39031,2561.4,2561.3,3.89998877]
[1724930424293,0.39037,2561.0,2560.6,3.2078]
[1724930424595,3.74631464,2561.3,2560.8,3.89998877]
[1724930424596,4.50913082,2560.9,2560.8,3.89998877]
[1724930424992,0.00585514,2561.1,2560.6,0.00585514]
[1724930424993,0.39042,2560.7,2560.6,0.00585514]
[1724930425394,10.40655135,2560.7,2560.6,0.00585514]
[1724930425596,14.59040135,2560.7,2560.6,0.00585514]
[1724930425790,0.39048,2560.3,2560.0,3.2078]
[1724930425991,0.39051,2560.1,2560.0,3.2078]
[1724930426390,0.39051,2560.1,2559.5,3.2078]
[1724930426391,0.39055,2559.9,2559.5,3.2078]
[1724930426602,0.39055,2559.9,2559.7,3.89998877]
[1724930426797,0.9762,2560.3,2559.6,3.89998877]
[1724930426798,4.86008859,2559.8,2559.6,3.89998877]
[1724930426992,4.86008859,2559.8,2559.5,3.21365514]
[1724930426993,0.39058,2559.6,2559.5,0.00585514]
[1724930427304,0.00585514,2559.8,2559.5,7.11364391]
[1724930427594,3.2078,2560.9,2559.7,3.89998877]
[1724930427812,3.2078,2560.9,2560.4,3.89998877]
[1724930427999,4.20552586,2560.6,2560.4,3.89998877]
[1724930428199,4.20552586,2560.7,2560.5,3.89998877]
[1724930428393,0.7789,2560.8,2560.5,3.89998877]
[1724930428593,4.50973428,2560.7,2560.6,3.89998877]
[1724930428904,4.50973428,2560.7,2560.5,3.2078]
[1724930429202,3.60404514,2560.9,2560.6,3.89998877]
[1724930429401,4.46042236,2560.8,2560.7,3.89998877]
[1724930429596,0.3904,2560.8,2560.7,3.89998877]
[1724930429793,4.46042236,2560.8,2560.7,3.89998877]
[1724930430001,0.39042,2560.7,2560.5,3.2078]
[1724930430191,0.39042,2560.7,2560.5,7.10778877]
[1724930430400,4.17795785,2560.6,2560.5,7.10778877]
[1724930430805,4.56837785,2560.7,2560.5,7.10778877]
[1724930431006,0.39042,2560.7,2560.5,7.10778877]
[1724930431298,4.16596156,2560.6,2560.5,7.10778877]
[1724930431898,4.16596156,2560.8,2560.5,7.10778877]
[1724930432094,3.21365514,2560.9,2560.7,3.89998877]
[1724930432397,4.10157014,2560.8,2560.7,3.89998877]
[1724930432800,4.49197014,2560.8,2560.7,3.89998877]
[1724930433197,4.10157014,2560.8,2560.7,3.89998877]
[1724930433601,4.49197014,2560.8,2560.7,3.89998877]
[1724930433902,4.10157014,2560.8,2560.7,3.89998877]
[1724930436792,0.39042,2560.7,2560.5,3.2078]
[1724930436998,4.49198014,2560.8,2560.6,3.89998877]
[1724930437196,0.39042,2560.7,2560.6,3.89998877]
[1724930437397,4.66646236,2560.7,2560.6,3.89998877]
[1724930437699,0.00585514,2560.9,2560.5,3.2078]
[1724930437700,0.39043,2560.6,2560.5,3.2078]
[1724930437895,0.39043,2560.6,2560.5,7.10778877]
[1724930438097,4.48196648,2560.6,2560.5,3.2078]
[1724930438310,10.48196648,2560.6,2560.5,3.2078]
[1724930438607,0.39052,2560.0,2559.9,3.2078]
[1724930438798,0.97616,2560.4,2559.9,3.2078]
[1724930438799,0.39052,2560.1,2559.9,3.2078]
[1724930439104,4.15806287,2560.0,2559.9,3.2078]
[1724930439301,4.18158885,2560.3,2559.9,3.2078]
[1724930439501,0.39045,2560.5,2560.2,7.10778877]
[1724930439800,3.2078,2561.0,2560.4,3.89998877]
[1724930440107,0.3761,2561.1,2560.8,7.10778877]
[1724930440398,4.4062024,2560.9,2560.8,7.10778877]
[1724930440600,4.7965924,2560.9,2560.8,7.10778877]
[1724930440801,4.7965924,2560.9,2560.8,3.89998877]
[1724930440993,0.3904,2560.8,2560.5,3.2078]
[1724930441192,0.3904,2560.8,2560.7,3.89998877]
[1724930441390,0.39043,2560.6,2560.5,3.2078]
[1724930441800,4.75261461,2560.6,2560.5,7.10778877]
[1724930442601,4.36218461,2560.6,2560.2,3.2078]
[1724930442793,4.36218461,2560.6,2560.2,7.10778877]
[1724930442993,0.97608,2560.7,2560.2,7.10778877]
[1724930443196,0.39048,2560.3,2560.2,3.89998877]
[1724930443401,0.39048,2560.3,2559.9,3.2078]
[1724930443706,0.39052,2560.0,2559.9,7.10778877]
[1724930444096,4.77165174,2560.0,2559.9,7.10778877]
[1724930445202,4.77165174,2560.0,2559.9,3.2078]
[1724930446305,0.39058,2559.6,2559.5,0.00585514]
[1724930446700,4.6898866,2559.6,2559.5,3.90584391]
[1724930447105,4.6898866,2559.6,2559.5,0.00585514]
[1724930447308,4.2993066,2559.6,2559.5,3.90584391]
[1724930447503,4.2993066,2559.6,2559.5,4.29644391]
[1724930447699,4.2993066,2559.6,2559.5,3.90584391]
[1724930447905,4.2993066,2559.6,2559.5,4.29644391]
[1724930448912,4.2993066,2559.6,2559.5,3.90584391]
[1724930449611,3.2078,2560.2,2559.5,3.90584391]
[1724930449612,3.2078,2560.2,2559.5,9.90584391]
[1724930449806,0.39048,2560.3,2560.1,7.10778877]
[1724930450004,0.39049,2560.3,2560.2,3.89998877]
[1724930450410,4.60054132,2560.3,2560.2,3.89998877]
[1724930450710,4.60054132,2560.3,2559.8,3.2078]
[1724930450911,0.39049,2560.2,2560.1,3.89998877]
[1724930451209,4.40074189,2560.2,2559.9,3.89998877]
[1724930451606,0.39051,2560.1,2559.9,3.89998877]
[1724930451911,4.79126189,2560.0,2559.9,3.89998877]
[1724930452108,4.40074189,2560.0,2559.8,3.2078]
[1724930452417,4.4651321,2560.2,2559.9,3.89998877]
[1724930452606,0.39049,2560.3,2560.1,3.89998877]
[1724930452914,4.0746421,2560.2,2560.1,3.89998877]
[1724930453213,4.4651321,2560.2,2560.1,3.89998877]
[1724930453608,0.39049,2560.3,2560.1,3.89998877]
[1724930453913,0.39046,2560.4,2560.2,3.2078]
[1724930454210,4.35157003,2560.3,2560.2,3.2078]
[1724930454416,4.74205003,2560.3,2560.2,3.2078]
[1724930454907,0.39048,2560.3,2560.2,3.2078]
[1724930455102,4.74205003,2560.3,2560.2,3.2078]
[1724930455503,4.74205003,2560.3,2559.8,3.2078]
[1724930455712,0.39051,2560.1,2560.0,3.89998877]
[1724930456010,0.39054,2559.9,2559.8,3.2078]
[1724930456415,4.17996519,2559.9,2559.8,7.10778877]
[1724930456917,0.39054,2559.9,2559.8,7.10778877]
[1724930457213,4.57050519,2559.9,2559.8,3.2078]
[1724930457415,0.39054,2559.9,2559.8,3.2078]
[1724930457617,4.72818441,2559.9,2559.8,3.2078]
[1724930458705,5.70453441,2559.9,2559.8,3.2078]
[1724930458907,0.39058,2559.7,2559.5,3.21365514]
[1724930459112,0.39058,2559.6,2559.5,7.11364391]
[1724930459409,4.2917614,2559.6,2559.5,3.21365514]
[1724930459618,4.2917614,2559.6,2559.5,7.50424391]
[1724930459816,0.75267,2560.4,2559.8,0.39054]
[1724930460112,4.53417903,2560.3,2560.2,3.89998877]
[1724930461111,4.92465903,2560.3,2560.2,3.89998877]
[1724930461316,4.53417903,2560.3,2560.2,3.89998877]
[1724930462710,0.39048,2560.3,2560.2,3.89998877]
[1724930463216,0.39057,2559.7,2559.5,3.21365514]
[1724930463411,0.39057,2559.7,2559.6,3.89998877]
[1724930463810,0.39058,2559.6,2559.5,3.21365514]
[1724930464013,0.39058,2559.6,2559.5,0.00585514]
[1724930464014,1.36705,2559.6,2559.5,0.00585514]
[1724930464209,1.36705,2559.6,2559.2,0.0202]
[1724930464210,0.39063,2559.3,2559.2,0.0202]
[1724930464411,14.09777435,2559.6,2559.2,3.92018877]
[1724930464412,0.76741,2559.5,2559.2,3.92018877]
[1724930464718,4.19057435,2559.3,2559.2,3.92018877]
[1724930465010,0.39063,2559.3,2559.2,3.92018877]
[1724930465315,14.82826471,2559.3,2559.2,0.0202]
[1724930465509,15.80484471,2559.3,2559.2,0.0202]
[1724930465716,14.82826471,2559.3,2559.2,0.0202]
[1724930465916,4.92106471,2559.3,2559.2,0.0202]
[1724930466111,15.80484471,2559.3,2559.2,0.0202]
[1724930467016,15.80484471,2559.3,2559.1,3.2078]
[1724930467017,1.36726,2559.2,2559.1,1.34]
[1724930467409,0.39066,2559.1,2559.0,0.00585514]
[1724930467813,4.47324484,2559.1,2559.0,0.00585514]
[1724930468516,4.08258484,2559.1,2559.0,0.00585514]
[1724930468717,4.08258484,2559.1,2559.0,3.90584391]
[1724930469419,4.08258484,2559.1,2559.0,7.11364391]
[1724930469607,0.38265514,2559.5,2559.0,7.11364391]
[1724930469608,4.34117949,2559.3,2559.0,7.11364391]
[1724930469810,4.34117949,2559.4,2559.3,3.89998877]
[1724930470018,0.77325514,2559.5,2559.3,3.89998877]
[1724930470234,0.39061,2559.4,2559.3,3.89998877]
[1724930470527,4.73738043,2559.4,2559.3,3.89998877]
[1724930470824,0.38265514,2559.5,2559.3,3.89998877]
[1724930470825,0.00585514,2559.5,2559.3,7.10778877]
[1724930471022,0.00585514,2559.5,2559.4,3.89998877]
[1724930471416,4.23650964,2559.5,2559.4,3.89998877]
[1724930472520,4.62710964,2559.5,2559.4,3.89998877]
[1724930472817,4.62710964,2559.5,2559.3,3.2078]
[1724930473020,4.62710964,2559.5,2559.3,7.10778877]
[1724930473211,4.23650964,2559.5,2559.3,7.10778877]
[1724930474912,4.23650964,2559.5,2559.4,3.89998877]
[1724930475522,4.62710964,2559.5,2559.4,3.89998877]
[1724930475721,4.23650964,2559.5,2559.4,3.89998877]
[1724930475917,4.23650964,2559.5,2559.3,3.2078]
[1724930476117,4.23650964,2559.5,2559.3,7.10778877]
[1724930476318,4.23650964,2559.5,2559.4,3.89998877]
[1724930476826,4.62710964,2559.5,2559.3,3.2078]
[1724930477130,4.62710964,2559.5,2559.3,7.10778877]
[1724930477524,0.39061,2559.4,2559.3,7.10778877]
[1724930477822,0.39064,2559.3,2559.0,0.00585514]
[1724930478020,0.39063,2559.3,2559.2,3.89998877]
[1724930478226,0.00585514,2559.5,2559.0,0.00585514]
[1724930478227,4.7775149,2559.2,2559.0,0.00585514]
[1724930478422,0.39066,2559.1,2559.0,0.00585514]
[1724930478720,4.62995167,2559.1,2559.0,3.90584391]
[1724930479126,0.39066,2559.1,2559.0,3.90584391]
[1724930479322,5.90058392,2559.1,2559.0,0.00585514]
[1724930479734,4.92392392,2559.1,2559.0,0.00585514]
[1724930481022,5.90058392,2559.1,2559.0,0.00585514]
[1724930481227,15.80858392,2559.1,2559.0,0.00585514]
[1724930482428,1.36742,2558.9,2558.8,3.2078]
[1724930482732,5.67830912,2558.9,2558.8,3.2078]
[1724930483131,5.67830912,2558.9,2558.0,3.9238]
[1724930483132,0.39076,2558.5,2558.0,3.9238]
[1724930483324,0.39074,2558.6,2558.5,3.89998877]
[1724930483623,0.97685,2558.6,2558.0,3.92778071]
[1724930483825,0.39077,2558.4,2558.3,3.89998877]
[1724930484225,4.46723703,2558.4,2558.3,3.89998877]
[1724930484530,4.07646703,2558.4,2558.3,3.89998877]
[1724930484931,0.39076,2558.5,2558.3,3.89998877]
[1724930485126,4.48253226,2558.4,2558.3,3.89998877]
[1724930485324,4.87330226,2558.4,2558.3,3.89998877]
[1724930485630,0.39077,2558.4,2558.3,3.89998877]
[1724930485834,4.86868398,2558.4,2558.3,3.89998877]
[1724930486024,0.39081,2558.1,2558.0,0.00398071]
[1724930486438,4.14026104,2558.1,2558.0,4.29479948]
[1724930486730,3.5736,2558.5,2558.0,4.29479948]
[1724930486926,4.14026104,2558.4,2558.0,0.00398071]
[1724930487123,3.5736,2558.5,2558.2,3.89998877]
[1724930487425,0.39078,2558.3,2558.2,3.89998877]
[1724930487621,4.74005476,2558.4,2558.2,3.89998877]
[1724930487931,4.76483476,2558.3,2558.2,3.89998877]
[1724930489035,4.37405476,2558.3,2558.2,3.89998877]
[1724930489534,3.5736,2558.5,2558.2,3.89998877]
[1724930489535,4.15968559,2558.4,2558.2,3.89998877]
[1724930489728,0.39077,2558.4,2558.0,0.00398071]
[1724930489931,1.36785,2558.1,2558.0,0.00398071]
[1724930490138,2.34489,2558.1,2558.0,0.00398071]
[1724930490450,14.11539285,2558.1,2557.3,3.566]
[1724930490733,0.39089,2557.6,2557.5,3.89998877]
[1724930491126,0.39089,2557.6,2557.3,3.2078]
[1724930491127,0.39092,2557.4,2557.3,3.2078]
[1724930491334,0.3834,2558.0,2557.3,3.2078]
[1724930491335,4.58817272,2559.1,2557.4,3.9104]
[1724930491639,3.2078,2559.8,2557.3,13.7078]
[1724930491640,0.3896,2559.3,2559.0,3.2078]
[1724930491844,1.30265894,2559.7,2559.2,3.50916877]
[1724930492138,0.3896,2559.6,2559.2,3.50916877]
[1724930492329,4.65909541,2559.6,2559.2,3.50916877]
[1724930493427,4.65909541,2559.6,2559.0,3.2078]
[1724930493628,4.65909541,2559.6,2559.0,6.71696877]
[1724930493835,5.04967541,2559.6,2559.0,6.71696877]
[1724930494035,4.65909541,2559.6,2559.0,6.71696877]
[1724930494237,5.04969541,2559.6,2559.0,6.71696877]
[1724930494434,5.04969541,2559.6,2559.0,3.50916877]
[1724930494634,5.04969541,2559.6,2558.7,3.2078]
[1724930494832,5.04969541,2559.6,2558.8,3.50916877]
[1724930495034,4.65909541,2559.6,2558.8,3.50916877]
[1724930495241,3.5984,2559.5,2558.8,3.50916877]
[1724930495666,4.23222921,2559.4,2558.8,3.50916877]
[1724930497375,4.23222921,2559.4,2558.9,3.50916877]
[1724930497762,4.23222921,2559.4,2559.2,3.50916877]
[1724930497968,4.23222921,2559.4,2559.3,3.50916877]
[1724930498668,4.4383092,2559.5,2559.3,3.50916877]
[1724930498870,0.72315514,2559.7,2559.3,3.50916877]
[1724930499375,4.4383092,2559.4,2559.3,3.50916877]
[1724930499565,4.4383092,2559.6,2559.3,3.50916877]
[1724930499765,4.19375697,2559.4,2559.3,3.50916877]
[1724930500171,4.19375697,2559.6,2559.3,3.50916877]
[1724930500374,0.72315514,2559.7,2559.3,3.50916877]
[1724930500576,4.1205852,2559.6,2559.3,3.50916877]
[1724930501968,4.1205852,2559.6,2559.5,3.50916877]
[1724930506279,0.00585514,2559.7,2559.5,3.50916877]
[1724930506280,0.00585514,2559.7,2559.5,9.50916877]
[1724930506498,0.00585514,2559.7,2559.6,6.71696877]
[1724930506774,0.00585514,2559.7,2559.6,7.10754877]
[1724930506969,0.00585514,2559.7,2559.6,13.10754877]
[1724930507170,0.31943595,2560.5,2559.7,0.39056]
[1724930507366,0.39044,2560.6,2560.2,3.50916877]
[1724930507569,4.3183888,2560.5,2560.2,3.50916877]
[1724930508175,0.00585514,2560.6,2560.2,3.50916877]
[1724930508482,4.27947989,2560.5,2560.2,3.50916877]
[1724930509171,4.27947989,2560.5,2560.4,3.50916877]
[1724930512884,4.27947989,2560.5,2560.4,3.89962877]
[1724930513372,4.27947989,2560.5,2560.4,3.50916877]
[1724930513881,4.27947989,2560.5,2560.4,3.89962877]
[1724930514580,4.27947989,2560.5,2560.4,3.50916877]
[1724930514776,4.27947989,2560.5,2560.4,3.89962877]
[1724930514971,4.27947989,2560.5,2560.4,3.50916877]
[1724930519387,4.66992989,2560.5,2560.4,3.50916877]
[1724930519892,5.42082989,2560.5,2560.4,3.50916877]
[1724930520189,5.42082989,2560.5,2560.3,3.2078]
[1724930520377,0.39049,2560.2,2560.1,0.00585514]
[1724930520773,4.4929443,2560.2,2560.1,0.00585514]
[1724930520982,4.1024543,2560.2,2560.1,0.00585514]
[1724930521175,4.1024543,2560.2,2560.1,3.51502391]
[1724930521378,4.07906985,2560.4,2560.1,3.51502391]
[1724930521593,0.3761,2560.5,2560.4,3.50916877]
[1724930522184,4.45516985,2560.5,2560.4,3.50916877]
[1724930522587,4.07906985,2560.5,2560.4,3.50916877]
[1724930523389,4.46951985,2560.5,2560.4,3.50916877]
[1724930523583,4.07906985,2560.5,2560.4,3.50916877]
[1724930523887,4.46951985,2560.5,2560.4,3.50916877]
[1724930524388,0.39048,2560.3,2560.1,0.00585514]
[1724930524687,0.39047,2560.4,2560.3,3.50916877]
[1724930525091,4.47356417,2560.4,2560.3,3.50916877]
[1724930525292,0.39047,2560.4,2560.3,3.50916877]
[1724930525487,0.00585514,2560.6,2560.3,3.50916877]
[1724930525789,4.08611491,2560.5,2560.1,0.00585514]
[1724930526285,4.08611491,2560.5,2560.4,3.50916877]
[1724930527979,4.08611491,2560.5,2560.4,12.71696877]
[1724930528188,4.08611491,2560.5,2560.4,6.71696877]
[1724930529483,4.08611491,2560.5,2560.4,7.07966877]
[1724930534694,4.08611491,2560.5,2560.4,7.47012877]
[1724930535082,4.08611491,2560.5,2560.4,7.07966877]
[1724930535296,4.08611491,2560.5,2560.4,7.47012877]
[1724930535494,4.08611491,2560.5,2560.4,7.07966877]
[1724930537481,4.08611491,2560.5,2560.4,7.47012877]
[1724930538690,0.39033,2561.3,2560.6,0.97608]
[1724930538889,0.39033,2561.3,2560.5,3.9056]
[1724930538890,0.39033,2561.3,2561.2,3.2078]
[1724930539091,0.39032,2561.3,2561.2,3.2078]
[1724930539293,0.47313749,2561.3,2561.2,3.2078]
[1724930539688,0.08281749,2561.3,2561.2,3.2078]
[1724930541188,0.08281749,2561.3,2560.9,3.2078]
[1724930541391,0.08281749,2561.3,2560.5,7.3988]
[1724930541604,0.08281749,2561.3,2560.8,3.2078]
[1724930541605,0.39036,2561.1,2560.8,3.2078]
[1724930541804,0.4701,2561.0,2560.8,3.2078]
[1724930542101,4.78744992,2561.0,2560.8,3.2078]
[1724930542300,5.27794992,2561.0,2560.8,3.2078]
[1724930542500,4.78744992,2561.0,2560.8,3.2078]
[1724930542703,4.31734992,2561.0,2560.9,7.66519]
[1724930542899,0.4905,2561.3,2560.9,7.2748]
[1724930543097,0.4905,2561.3,2561.1,3.2078]
[1724930543305,3.207,2561.4,2561.2,3.9048]
[1724930543600,4.06048185,2561.2,2561.1,3.2078]
[1724930543808,4.06048185,2561.3,2561.1,3.2078]
[1724930544110,3.207,2561.4,2561.1,3.2078]
[1724930544306,4.06048185,2561.3,2561.1,3.2078]
[1724930544695,4.45081185,2561.3,2561.1,3.2078]
[1724930545096,0.4762,2561.2,2561.1,3.2078]
[1724930545301,4.06048185,2561.3,2560.8,3.59819]
[1724930545504,3.59732,2561.4,2560.8,3.59819]
[1724930545505,4.40826436,2561.2,2561.1,3.2078]
[1724930545705,4.40826436,2561.3,2561.1,3.2078]
[1724930545908,4.40826436,2561.3,2561.1,3.59815]
[1724930546099,3.207,2561.4,2561.1,3.59815]
[1724930546303,4.40826436,2561.3,2561.1,3.59815]
[1724930547008,4.40826436,2561.3,2561.1,3.2078]
[1724930547702,3.207,2561.4,2561.2,4.29514]
[1724930548003,3.207,2561.4,2561.2,3.9048]
[1724930548307,3.207,2561.4,2561.3,3.904]
[1724930549410,3.207,2561.4,2561.1,6.5778]
[1724930549411,3.59731,2561.4,2561.1,6.5778]
[1724930549598,7.73212054,2561.4,2561.1,3.2078]
[1724930549798,8.22942054,2561.4,2561.1,3.2078]
[1724930550408,7.83911054,2561.4,2561.1,3.2078]
[1724930551019,8.22942054,2561.4,2561.1,3.2078]
[1724930551508,7.83911054,2561.4,2561.1,3.2078]
[1724930552103,0.39034,2561.2,2561.1,3.2078]
[1724930552606,4.69355849,2561.2,2561.1,3.2078]
[1724930553103,4.69355849,2561.2,2560.7,4.191]
[1724930553104,0.3904,2560.9,2560.8,3.2078]
[1724930553306,0.39039,2560.9,2560.8,3.2078]
[1724930553508,4.58437862,2560.9,2560.8,3.2078]
[1724930553709,4.19398862,2560.9,2560.8,3.2078]
[1724930554711,4.58437862,2560.9,2560.8,3.2078]
[1724930555020,5.05537862,2560.9,2560.8,3.2078]
[1724930555810,4.66498862,2560.9,2560.8,3.2078]
[1724930556112,5.05537862,2560.9,2560.8,3.2078]
[1724930556309,0.3904,2560.8,2560.7,4.191]
[1724930556710,0.3904,2560.8,2560.5,3.2078]
[1724930556711,0.39043,2560.6,2560.5,3.2078]
[1724930556913,5.50941774,2560.8,2560.2,3.8589]
[1724930557106,4.92385774,2560.6,2560.2,3.8589]
[1724930557306,4.53340774,2560.7,2560.4,3.2078]
[1724930557702,0.471,2560.9,2560.4,3.2078]
[1724930557905,4.71610471,2560.8,2560.4,3.2078]
[1724930558204,0.471,2560.9,2560.4,3.2078]
[1724930558205,0.39042,2560.7,2560.4,3.2078]
[1724930558405,4.32568471,2560.7,2560.4,3.2078]
[1724930558605,0.97603,2560.8,2560.4,3.2078]
[1724930558606,0.39045,2560.5,2560.4,3.2078]
[1724930559015,4.69145868,2560.5,2560.4,3.2078]
[1724930559607,8.59705868,2560.5,2560.4,3.2078]
[1724930559809,0.39049,2560.2,2560.1,0.00585514]
[1724930560011,0.39048,2560.3,2560.1,0.00585514]
[1724930560209,4.90674845,2560.2,2560.1,3.91145514]
[1724930560412,4.90674845,2560.2,2560.1,0.00585514]
[1724930560617,4.90674845,2560.2,2560.1,3.91225514]
[1724930560618,0.4819,2560.2,2560.1,3.91225514]
[1724930561516,5.28846865,2560.2,2560.1,0.00585514]
[1724930563715,9.19486865,2560.2,2560.1,0.00585514]
[1724930563916,0.39051,2560.1,2559.6,3.2078]
[1724930564313,4.41436336,2560.0,2559.6,3.2078]
[1724930565426,4.41436336,2560.0,2559.7,7.2764]
[1724930565619,4.41436336,2560.0,2559.7,7.66696]
[1724930565920,4.41436336,2560.0,2559.8,3.9064]
[1724930566316,4.41436336,2560.0,2559.9,7.50474]
[1724930566510,4.41436336,2560.0,2559.9,3.59834]
[1724930566714,4.41436336,2560.0,2559.9,7.50474]
[1724930566918,4.41436336,2560.0,2559.9,16.87474]
[1724930567120,0.00585514,2560.1,2560.0,0.39052]
[1724930567320,0.00585514,2560.1,2560.0,4.76302]
[1724930567625,0.00585514,2560.1,2560.0,10.76302]
[1724930569017,0.00585514,2560.1,2560.0,11.37046491]
[1724930569814,0.00585514,2560.1,2560.0,10.76302]
[1724930572425,0.00585514,2560.1,2560.0,11.37051505]
[1724930572621,0.00585514,2560.1,2560.0,10.76302]
[1724930573230,0.00585514,2560.1,2560.0,3.9064]
[1724930573827,0.00585514,2560.1,2560.0,4.29692]
[1724930574139,0.00585514,2560.1,2560.0,4.76922]
[1724930574424,0.00585514,2560.1,2560.0,14.74672992]
[1724930574633,4.58817272,2561.8,2560.9,0.39038]
[1724930574923,1.015,2562.1,2561.5,3.2078]
[1724930575132,0.4976,2562.1,2562.0,3.37]
[1724930575316,0.4976,2562.1,2561.8,3.2078]
[1724930575519,4.65807063,2562.1,2561.8,6.8968]
[1724930575726,4.65807063,2562.1,2561.7,0.00585514]
[1724930575923,0.88072,2562.0,2561.7,0.00585514]
[1724930576123,0.39023,2561.9,2561.7,0.00585514]
[1724930576319,0.39025,2561.8,2561.7,0.00585514]
[1724930576526,0.39025,2561.8,2561.2,44.0078]
[1724930576527,0.39026,2561.7,2561.2,44.0078]
[1724930576835,0.39026,2561.7,2561.2,3.2078]
[1724930577019,0.3903,2561.5,2561.2,3.2078]
[1724930577218,3.904,2561.4,2561.2,3.2078]
[1724930577420,4.66033594,2561.4,2561.2,3.2078]
[1724930578033,0.5035,2561.8,2561.2,7.1118]
[1724930578230,0.4905,2561.7,2561.2,3.2078]
[1724930578426,0.4905,2561.7,2561.4,3.2078]
[1724930578427,4.3639067,2561.5,2561.4,3.2078]
[1724930578725,0.4905,2561.7,2561.4,3.2078]
[1724930579028,3.37,2562.5,2561.6,0.39027]
[1724930579226,3.877,2562.5,2561.9,3.2078]
[1724930579423,4.17283632,2562.0,2561.9,3.2078]
[1724930579623,4.17283632,2562.1,2561.9,3.2078]
[1724930579822,0.5092,2562.4,2561.9,3.2078]
[1724930580132,4.30036556,2562.1,2561.9,3.2078]
[1724930580618,0.507,2562.0,2561.9,3.2078]
[1724930580920,4.9284664,2562.0,2561.9,3.2078]
[1724930581120,8.8316664,2562.0,2561.9,3.2078]
[1724930581323,14.8316664,2562.0,2561.8,3.2078]
[1724930581527,4.9284664,2562.0,2561.8,3.2078]
[1724930581731,3.9032,2561.9,2561.8,3.2078]
[1724930581917,4.9284664,2562.0,2561.8,3.2078]
[1724930582120,4.18011413,2561.9,2561.8,3.2078]
[1724930582623,0.00585514,2562.2,2561.8,7.50125]
[1724930582925,0.00585514,2562.2,2562.1,3.2078]
[1724930583133,0.00585514,2562.2,2561.7,0.39026]
[1724930583134,0.00585514,2562.2,2561.8,3.2078]
[1724930583321,4.31550889,2562.1,2561.8,3.2078]
[1724930583516,4.32136403,2562.2,2561.8,3.2078]
[1724930583729,4.2934,2562.1,2561.8,3.2078]
[1724930583928,8.43425511,2562.1,2561.4,3.2078]
[1724930584122,4.53105511,2562.1,2561.4,3.2078]
[1724930584325,4.53105511,2562.1,2561.7,3.2078]
[1724930584528,4.53105511,2562.1,2561.4,6.5778]
[1724930585229,4.92126511,2562.1,2561.4,6.5778]
[1724930585534,4.53105511,2562.1,2561.4,6.5778]
[1724930586122,4.53105511,2562.1,2561.7,3.2078]
[1724930587036,4.53105511,2562.1,2561.7,3.59806]
[1724930587234,4.53105511,2562.1,2561.8,0.39024]
[1724930587420,4.53105511,2562.1,2561.8,3.37]
[1724930587624,4.53105511,2562.1,2562.0,0.39022]
[1724930587832,4.53105511,2562.1,2561.9,0.90632]
[1724930588029,4.53105511,2562.1,2562.0,3.2078]
[1724930589033,4.53105511,2562.1,2561.6,0.39027]
[1724930589034,4.53105511,2562.1,2561.6,10.2648]
[1724930589227,4.53105511,2562.1,2561.9,3.2078]
[1724930589422,4.53105511,2562.1,2561.9,7.111]
[1724930589630,4.53105511,2562.1,2561.9,3.2078]
[1724930590335,4.29342,2562.0,2561.6,3.2078]
[1724930590635,0.39023,2562.0,2561.6,3.2078]
[1724930590827,4.09860682,2561.9,2561.6,3.2078]
[1724930591029,0.39026,2561.7,2561.6,3.2078]
[1724930591333,4.09860682,2561.7,2561.6,3.2078]
[1724930591536,4.09860682,2561.7,2561.2,3.59813]
[1724930591837,4.09860682,2561.7,2561.5,3.2078]
[1724930592537,3.904,2561.6,2561.5,3.2078]
[1724930592735,4.09860682,2561.7,2561.5,3.2078]
[1724930592929,4.33828321,2561.6,2561.5,3.2078]
[1724930593329,4.33828321,2561.7,2561.5,7.1118]
[1724930593527,4.33828321,2561.7,2561.5,3.2078]
[1724930593839,4.39094279,2562.0,2561.6,0.39028]
[1724930594135,0.9856,2562.1,2561.7,0.39026]
[1724930594325,4.39094279,2562.0,2561.8,3.2078]
[1724930594742,4.39094279,2562.0,2561.5,3.2078]
[1724930594743,0.39024,2561.9,2561.5,3.2078]
[1724930595033,4.48316978,2561.8,2561.5,3.2078]
[1724930595438,4.48316978,2561.9,2561.5,3.59809]
[1724930595831,3.71020243,2562.0,2561.5,3.59809]
[1724930596139,4.2491664,2562.0,2561.5,3.59808]
[1724930596627,4.2491664,2562.0,2561.6,0.39028]
[1724930596832,4.2491664,2562.0,2561.5,3.2078]
[1724930597029,4.2491664,2562.0,2561.6,0.39027]
[1724930597535,4.6393964,2562.0,2561.5,3.2078]
[1724930597938,4.2491664,2562.0,2561.5,3.2078]
[1724930598437,0.39025,2561.8,2561.5,3.2078]
[1724930598644,0.39026,2561.8,2561.5,3.2078]
[1724930598940,4.44028821,2561.7,2561.5,3.2078]
[1724930599443,0.5191,2561.6,2561.5,3.2078]
[1724930599842,4.60824448,2561.6,2561.5,3.2078]
[1724930600929,4.08914448,2561.6,2561.5,3.2078]
[1724930601337,0.39024,2561.9,2561.5,3.2078]
[1724930601338,4.39998542,2561.9,2561.5,3.2078]
[1724930601544,0.39027,2561.7,2561.5,3.2078]
[1724930601939,3.8041713,2561.6,2561.5,3.2078]
[1724930602434,7.7081713,2561.6,2561.5,3.2078]
[1724930602635,17.0781713,2561.6,2561.0,0.00585514]
[1724930602847,3.37,2561.3,2561.0,0.00585514]
[1724930603139,4.48709322,2561.2,2561.0,0.00585514]
[1724930603538,4.29515,2561.1,2561.0,0.00585514]
[1724930604039,0.39041,2560.8,2560.3,3.2078]
[1724930604240,3.37,2560.9,2560.3,3.2078]
[1724930604435,4.53073037,2560.7,2560.0,6.5778]
[1724930604643,0.39042,2560.7,2560.0,6.96832]
[1724930604948,0.00585514,2560.6,2560.0,6.96832]
[1724930605135,4.06813791,2560.6,2560.0,6.96832]
[1724930605340,0.39045,2560.5,2560.0,6.5778]
[1724930605543,0.90165,2560.5,2560.0,6.5778]
[1724930605735,4.12010604,2560.4,2560.0,6.5778]
[1724930607443,4.12010604,2560.4,2560.0,6.96832]
[1724930608143,4.12010604,2560.4,2560.0,3.2078]
[1724930608345,4.12010604,2560.4,2560.0,6.96832]
[1724930608744,4.33480558,2560.5,2560.0,6.96832]
[1724930609040,0.39628514,2560.6,2560.0,6.96832]
[1724930609248,0.39628514,2560.6,2560.4,3.2078]
[1724930609249,4.33480558,2560.5,2560.4,3.2078]